bitfinex-derivatives/quotes_ETHF0:USTF0_20250426
["timestamp","ask_amount","ask_price","bid_price","bid_amount"]
[1745635105429,2.4781,1807.3,1807.2,3.2078]
[1745635105631,2.4781,1807.3,1807.2,4.3139]
[1745635105930,2.4781,1807.3,1807.2,5.9125]
[1745635106830,0.7887,1807.5,1807.2,5.9125]
[1745635106831,0.7887,1807.5,1807.3,1.10599]
[1745635107032,0.7887,1807.5,1807.3,3.68819]
[1745635107231,5.308,1807.5,1807.4,1.10598]
[1745635107431,5.308,1807.5,1807.4,3.66478]
[1745635107934,5.308,1807.5,1807.4,2.5588]
[1745635108134,1.10592,1807.5,1807.4,2.5588]
[1745635108329,1.10592,1807.5,1807.4,1.733]
[1745635108535,1.91542,1807.5,1807.4,1.733]
[1745635109434,1.91545,1807.5,1807.3,1.10604]
[1745635109631,1.91545,1807.5,1807.3,2.83904]
[1745635109632,1.5819,1807.4,1807.3,2.83904]
[1745635110234,6.8899,1807.4,1807.3,2.83904]
[1745635111237,1.5819,1807.4,1807.3,2.83904]
[1745635113128,6.8899,1807.4,1807.3,2.83904]
[1745635114758,5.308,1807.4,1807.3,2.83904]
[1745635115253,1.10593,1807.5,1807.3,2.83904]
[1745635115955,2.7843,1807.6,1807.3,2.83904]
[1745635116151,1.10592,1807.5,1807.3,2.83904]
[1745635116348,3.51802,1807.5,1807.3,2.83904]
[1745635116552,1.10604,1807.3,1807.1,4.76516]
[1745635116757,1.10604,1807.3,1807.1,7.31286]
[1745635116945,1.6013,1807.2,1807.1,7.31286]
[1745635118450,0.8068,1807.3,1807.2,1.1061]
[1745635118652,0.8068,1807.3,1807.2,2.8095]
[1745635119147,3.53854,1807.3,1807.2,1.7034]
[1745635120246,2.4325,1807.3,1807.2,2.8095]
[1745635120756,4.0186,1807.5,1807.4,1.10598]
[1745635121151,3.2078,1807.5,1807.4,1.10598]
[1745635121351,3.2078,1807.5,1807.4,2.72648]
[1745635121761,4.8335,1807.5,1807.4,2.72648]
[1745635121958,3.2078,1807.5,1807.4,2.72648]
[1745635125057,2.4715,1807.6,1807.5,1.10592]
[1745635125258,2.4715,1807.6,1807.5,2.76362]
[1745635126262,5.308,1807.6,1807.5,2.76362]
[1745635127159,3.2078,1807.7,1807.6,1.10586]
[1745635127463,3.2078,1807.7,1807.6,2.76356]
[1745635129060,5.7441,1807.9,1807.8,1.10574]
[1745635129364,5.7441,1807.9,1807.6,1.6577]
[1745635129365,6.84978,1807.9,1807.7,2.5108]
[1745635129570,1.5929,1807.8,1807.7,3.6166]
[1745635129961,2.69864,1807.8,1807.6,1.10582]
[1745635130161,3.50524,1807.8,1807.6,1.10582]
[1745635130359,1.5929,1807.7,1807.6,1.10586]
[1745635130868,2.6987,1807.7,1807.5,2.7714]
[1745635131062,1.5929,1807.7,1807.6,1.10586]
[1745635131365,1.91239,1807.8,1807.6,1.10586]
[1745635131556,1.91235,1807.8,1807.6,1.10586]
[1745635132260,7.22035,1807.8,1807.6,1.10586]
[1745635132765,6.1146,1807.8,1807.6,1.10586]
[1745635132968,7.22036,1807.8,1807.6,1.10586]
[1745635133368,6.1146,1807.8,1807.7,1.1058]
[1745635133762,7.22034,1807.8,1807.6,1.10582]
[1745635134069,6.1146,1807.8,1807.5,1.6655]
[1745635134270,0.8066,1807.8,1807.5,1.6655]
[1745635134673,0.8066,1807.8,1807.7,1.1058]
[1745635135168,6.1146,1807.8,1807.7,1.1058]
[1745635135471,5.308,1807.8,1807.6,1.10581]
[1745635135772,6.41374,1807.8,1807.6,1.10581]
[1745635136269,1.10574,1807.8,1807.6,1.10581]
[1745635137566,1.10582,1807.7,1807.5,2.77141]
[1745635137775,1.10579,1807.8,1807.5,2.77141]
[1745635137975,3.2078,1807.7,1807.5,2.77137]
[1745635138270,4.3136,1807.7,1807.5,2.77137]
[1745635138671,1.1058,1807.7,1807.5,2.77137]
[1745635139273,1.10578,1807.8,1807.6,1.10586]
[1745635139969,1.1058,1807.7,1807.5,2.77138]
[1745635140165,1.10592,1807.5,1807.4,1.6148]
[1745635140368,1.10596,1807.5,1807.3,1.10601]
[1745635140871,0.8738,1807.4,1807.2,4.45436]
[1745635141864,0.8738,1807.4,1807.1,3.2078]
[1745635142074,1.10615,1807.2,1807.0,2.4747]
[1745635142575,1.10615,1807.2,1807.0,3.58092]
[1745635146068,1.10617,1807.1,1807.0,1.6685]
[1745635146271,1.10615,1807.2,1807.0,2.77473]
[1745635146876,1.10615,1807.2,1807.0,2.77467]
[1745635147077,1.10615,1807.2,1807.0,1.6685]
[1745635147372,4.0545,1807.3,1807.0,1.6685]
[1745635147373,5.16058,1807.3,1807.0,1.6685]
[1745635147578,1.6287,1807.2,1807.1,1.10611]
[1745635149273,1.6287,1807.2,1807.1,1.10617]
[1745635150776,2.73482,1807.2,1807.0,1.691]
[1745635150971,1.6287,1807.2,1807.0,2.79718]
[1745635151872,1.6287,1807.2,1807.1,1.10617]
[1745635152579,1.6287,1807.2,1807.0,2.79718]
[1745635153175,1.6287,1807.2,1807.1,1.10617]
[1745635154180,2.7348,1807.2,1807.0,2.79718]
[1745635154884,2.73484,1807.2,1807.0,2.79721]
[1745635155082,1.5831,1807.1,1807.0,2.79721]
[1745635155983,1.5831,1807.1,1807.0,2.79723]
[1745635158276,5.16059,1807.3,1807.1,1.10615]
[1745635158477,6.73969,1807.3,1807.1,2.71225]
[1745635158677,4.7869,1807.3,1807.2,1.1061]
[1745635158879,4.7869,1807.3,1807.2,4.3897]
[1745635159185,10.0949,1807.3,1807.2,4.3897]
[1745635159487,11.20094,1807.3,1807.2,3.2836]
[1745635159885,10.0949,1807.3,1807.2,4.3897]
[1745635160087,11.20094,1807.3,1807.2,3.2836]
[1745635161587,11.20094,1807.3,1807.2,4.3897]
[1745635161588,10.0949,1807.3,1807.2,4.3897]
[1745635161786,5.308,1807.3,1807.2,4.3897]
[1745635161985,3.6122,1807.3,1807.2,16.2355]
[1745635162186,1.10575,1807.8,1807.5,1.10587]
[1745635162388,3.63805,1807.8,1807.6,2.4662]
[1745635162783,1.1058,1807.7,1807.6,3.2707]
[1745635162983,2.8382,1807.7,1807.6,3.2707]
[1745635163185,7.8863,1807.7,1807.6,3.2707]
[1745635164284,7.8863,1807.7,1807.6,4.37656]
[1745635164686,7.8863,1807.7,1807.6,3.2707]
[1745635165087,7.8863,1807.7,1807.6,4.37656]
[1745635165591,7.0404,1807.7,1807.6,4.37656]
[1745635165790,5.308,1807.7,1807.6,4.37656]
[1745635166289,2.4301,1807.8,1807.6,4.37656]
[1745635166593,4.31351,1807.9,1807.7,2.7448]
[1745635166594,3.2078,1807.9,1807.7,2.7448]
[1745635166793,3.2078,1807.9,1807.8,1.639]
[1745635166995,4.838,1807.9,1807.8,1.639]
[1745635167194,10.146,1807.9,1807.8,1.639]
[1745635167399,10.146,1807.9,1807.8,2.74474]
[1745635167694,5.308,1807.9,1807.8,2.74474]
[1745635168093,5.1434,1808.1,1807.8,2.74474]
[1745635168288,5.6461,1808.1,1807.9,3.60013]
[1745635168494,5.6461,1808.1,1808.0,2.4843]
[1745635168495,4.8161,1808.1,1808.0,2.4843]
[1745635168686,4.8161,1808.1,1808.0,3.58991]
[1745635169094,3.2078,1808.1,1808.0,3.58991]
[1745635170397,3.2078,1808.3,1808.0,2.4843]
[1745635170591,3.2078,1808.3,1808.2,1.10549]
[1745635170793,4.31323,1808.3,1808.1,1.712]
[1745635170994,5.99023,1808.3,1808.2,0.8557]
[1745635171295,9.62123,1808.3,1808.2,0.8557]
[1745635171496,1.10549,1808.2,1808.1,1.712]
[1745635172199,6.41349,1808.2,1808.1,1.712]
[1745635172900,1.10555,1808.1,1807.9,3.67335]
[1745635173086,1.10555,1808.1,1807.6,3.2078]
[1745635173087,1.10569,1807.9,1807.6,4.0364]
[1745635173294,1.10569,1807.9,1807.7,4.74175]
[1745635173593,1.10569,1807.9,1807.7,6.45375]
[1745635174003,0.8695,1808.0,1807.7,3.636]
[1745635174004,1.10574,1807.8,1807.7,3.636]
[1745635174200,1.94834,1807.8,1807.7,3.636]
[1745635175199,7.25634,1807.8,1807.7,3.636]
[1745635175600,1.1058,1807.7,1807.6,1.6736]
[1745635176204,6.4138,1807.7,1807.6,1.6736]
[1745635176700,5.308,1807.7,1807.6,2.77946]
[1745635178295,1.97675,1808.1,1807.8,1.10574]
[1745635178501,1.97675,1808.1,1807.9,3.3424]
[1745635179093,1.97675,1808.1,1807.9,4.44805]
[1745635179298,6.1792,1808.1,1807.9,4.44805]
[1745635179500,5.308,1808.1,1808.0,1.10561]
[1745635179697,5.308,1808.1,1808.0,2.82551]
[1745635180103,5.53813,1808.2,1808.0,1.7199]
[1745635180303,1.10555,1808.1,1808.0,1.7199]
[1745635180900,1.10555,1808.1,1807.9,1.5943]
[1745635181099,6.41355,1808.1,1807.9,2.69997]
[1745635182203,6.41355,1808.1,1808.0,1.7199]
[1745635182598,5.308,1808.1,1808.0,1.7199]
[1745635183309,5.308,1808.1,1808.0,2.82551]
[1745635184405,6.41355,1808.1,1808.0,1.7199]
[1745635186603,5.308,1808.1,1808.0,7.82551]
[1745635186808,5.308,1808.1,1808.0,11.46151]
[1745635187214,1.92168,1808.4,1808.0,10.3559]
[1745635187402,1.92168,1808.4,1808.1,2.75401]
[1745635187710,1.732,1808.3,1808.2,2.75399]
[1745635189814,0.8163,1808.4,1808.3,1.10543]
[1745635190011,3.53278,1808.4,1808.2,2.4781]
[1745635190206,3.53278,1808.4,1808.2,3.58358]
[1745635190207,8.84078,1808.4,1808.2,3.58358]
[1745635190406,1.6111,1808.3,1808.2,3.58358]
[1745635191109,6.9191,1808.3,1808.2,3.58358]
[1745635191309,5.308,1808.3,1808.2,3.58358]
[1745635192116,0.8163,1808.4,1808.3,1.10543]
[1745635192308,4.038,1808.5,1808.4,1.10537]
[1745635192802,2.4474,1808.5,1808.4,2.78837]
[1745635193008,1.6172,1808.5,1808.4,2.78837]
[1745635193307,6.9252,1808.5,1808.4,2.78837]
[1745635194312,8.03051,1808.5,1808.4,1.683]
[1745635194512,8.03055,1808.5,1808.3,0.8153]
[1745635194711,2.425,1808.4,1808.3,1.92072]
[1745635195112,2.425,1808.4,1808.3,3.59582]
[1745635196312,1.6172,1808.4,1808.3,3.59582]
[1745635198017,1.6172,1808.4,1808.3,2.4904]
[1745635198319,1.6172,1808.4,1808.3,3.59583]
[1745635198910,3.2078,1808.5,1808.4,1.10537]
[1745635199111,6.9546,1808.5,1808.4,2.78117]
[1745635199315,8.05991,1808.5,1808.4,1.6758]
[1745635199814,8.05991,1808.5,1808.4,2.78117]
[1745635200012,6.9546,1808.5,1808.4,2.78117]
[1745635201318,5.308,1808.5,1808.4,2.78117]
[1745635201719,5.308,1808.5,1808.4,1.6758]
[1745635201923,5.308,1808.5,1808.4,2.78117]
[1745635202419,7.0117,1808.5,1808.4,2.78117]
[1745635204722,5.308,1808.5,1808.4,2.78117]
[1745635205119,5.1408,1808.7,1808.4,1.6758]
[1745635205320,1.734,1808.6,1808.5,3.57831]
[1745635206222,7.042,1808.6,1808.5,3.57831]
[1745635207320,5.308,1808.6,1808.5,3.57831]
[1745635207520,5.308,1808.6,1808.5,6.78611]
[1745635207820,5.308,1808.6,1808.5,11.78611]
[1745635208021,3.06798,1808.6,1808.5,12.22942836]
[1745635208222,3.277,1809.2,1809.0,1.10495]
[1745635208422,1.6011,1809.1,1809.0,1.10495]
[1745635208720,3.2078,1809.3,1809.2,1.10488]
[1745635208925,4.8089,1809.3,1809.2,1.10488]
[1745635209118,10.1169,1809.3,1809.2,1.10488]
[1745635209622,8.5158,1809.3,1809.2,1.10488]
[1745635210126,6.41283,1809.3,1809.1,1.1049]
[1745635210518,1.671,1809.2,1809.1,1.1049]
[1745635211326,1.671,1809.2,1809.0,2.70517]
[1745635211928,2.7759,1809.2,1809.0,1.6002]
[1745635212127,7.7687,1809.2,1809.0,2.70516]
[1745635212327,8.87359,1809.2,1809.0,2.70516]
[1745635212830,8.87359,1809.2,1809.0,1.6002]
[1745635213125,1.671,1809.1,1809.0,1.6002]
[1745635213427,2.4591,1809.1,1808.9,4.73903]
[1745635213727,2.4591,1809.1,1808.9,6.35153]
[1745635213926,2.4591,1809.1,1809.0,2.7175]
[1745635214830,2.4591,1809.1,1809.0,1.6125]
[1745635215220,2.4591,1809.1,1809.0,2.7175]
[1745635215428,3.56404,1809.1,1809.0,1.6125]
[1745635215723,2.4591,1809.1,1809.0,1.6125]
[1745635215923,3.56404,1809.1,1809.0,1.6125]
[1745635216123,8.87204,1809.1,1809.0,1.6125]
[1745635216430,8.87204,1809.1,1808.9,4.73902]
[1745635216631,1.6663,1809.0,1808.9,4.73902]
[1745635216928,1.6663,1809.0,1808.9,6.31952]
[1745635217118,6.9743,1809.0,1808.9,6.31956]
[1745635217324,6.9743,1809.0,1808.9,5.2145]
[1745635217632,8.0793,1809.0,1808.9,5.2145]
[1745635218225,6.9743,1809.0,1808.9,6.31956]
[1745635218424,6.9743,1809.0,1808.9,3.634]
[1745635218623,6.9743,1809.0,1808.8,1.92158]
[1745635218824,1.6663,1808.9,1808.8,7.13608]
[1745635219422,0.7881,1809.1,1808.9,1.10503]
[1745635219625,2.5283,1809.1,1809.0,2.7382]
[1745635220226,2.5283,1809.1,1809.0,1.6332]
[1745635220425,3.63324,1809.1,1809.0,1.6332]
[1745635220934,3.63324,1809.1,1808.9,1.10502]
[1745635221134,2.84521,1809.0,1808.8,7.18878]
[1745635221333,1.10506,1808.9,1808.8,6.8939]
[1745635221538,2.5907,1808.9,1808.8,4.73913]
[1745635221835,2.5907,1808.9,1808.8,7.18253]
[1745635222132,2.5907,1808.9,1808.8,3.54853]
[1745635222531,3.9959,1809.1,1808.8,2.4434]
[1745635222731,3.9959,1809.1,1809.0,1.105]
[1745635223134,11.0012,1809.1,1809.0,2.8043]
[1745635223630,11.0012,1809.1,1809.0,1.6993]
[1745635223832,11.0012,1809.1,1809.0,2.8043]
[1745635225935,11.0012,1809.1,1809.0,1.6993]
[1745635226230,7.7934,1809.1,1809.0,2.8043]
[1745635227231,2.4854,1809.1,1809.0,2.8043]
[1745635228138,7.7934,1809.1,1809.0,2.8043]
[1745635228638,5.308,1809.1,1809.0,2.8043]
[1745635229341,1.7352,1809.2,1809.1,1.10494]
[1745635229534,1.7352,1809.2,1809.1,3.61554]
[1745635230138,7.0432,1809.2,1809.1,3.61554]
[1745635231129,1.6101,1809.4,1809.1,2.5106]
[1745635231334,1.7352,1809.3,1809.2,2.74858]
[1745635231932,2.84002,1809.3,1809.2,1.6437]
[1745635232132,8.14802,1809.3,1809.2,1.6437]
[1745635232334,8.14802,1809.3,1809.1,1.97181]
[1745635232535,1.6195,1809.2,1809.0,9.53876]
[1745635232842,2.72438,1809.2,1809.0,9.53876]
[1745635233230,1.6195,1809.1,1809.0,9.53876]
[1745635233430,5.308,1809.2,1809.1,1.10494]
[1745635233636,5.308,1809.2,1809.1,3.51444]
[1745635235137,1.6195,1809.3,1809.2,1.10488]
[1745635235340,1.6195,1809.3,1809.2,2.82128]
[1745635235536,4.0159,1809.4,1809.3,1.10482]
[1745635235737,4.0159,1809.4,1809.3,2.82122]
[1745635236030,3.2078,1809.4,1809.3,2.82122]
[1745635236240,5.308,1809.4,1809.3,1.7164]
[1745635236544,5.308,1809.4,1809.2,3.633]
[1745635236545,6.41276,1809.4,1809.2,3.633]
[1745635236842,1.5842,1809.3,1809.2,4.73788]
[1745635237238,6.8922,1809.3,1809.1,3.6378]
[1745635237441,7.7639,1809.3,1809.2,1.10488]
[1745635237638,6.1797,1809.3,1809.2,1.10488]
[1745635238044,5.308,1809.3,1809.2,1.10488]
[1745635238239,5.308,1809.3,1809.2,2.70998]
[1745635238936,5.308,1809.3,1809.2,5.91778]
[1745635239140,3.2078,1809.7,1809.3,2.76206]
[1745635239339,3.2078,1809.7,1809.4,1.6051]
[1745635239641,3.2078,1809.7,1809.6,1.10464]
[1745635240345,5.308,1809.7,1809.6,1.10464]
[1745635240646,5.308,1809.7,1809.6,4.31244]
[1745635241338,1.10439,1810.0,1809.6,3.2078]
[1745635241643,1.10439,1810.0,1809.8,1.1045]
[1745635242046,1.10439,1810.0,1809.8,2.6846]
[1745635242345,6.41239,1810.0,1809.8,2.6846]
[1745635242544,6.41239,1810.0,1809.8,2.68461]
[1745635242942,5.308,1810.0,1809.8,1.5801]
[1745635243247,4.31225,1809.9,1809.7,3.633]
[1745635243645,0.7977,1809.8,1809.7,4.73758]
[1745635244042,6.1057,1809.8,1809.7,4.73758]
[1745635245047,6.1057,1809.8,1809.7,3.633]
[1745635245249,7.21021,1809.8,1809.7,3.633]
[1745635245456,5.308,1809.8,1809.7,4.73758]
[1745635246149,4.027,1810.1,1809.9,1.10443]
[1745635246450,5.13133,1810.1,1809.9,1.10443]
[1745635247152,10.43933,1810.1,1809.9,3.62023]
[1745635247748,7.23153,1810.1,1809.9,3.62023]
[1745635247953,10.43933,1810.1,1809.9,3.62023]
[1745635248648,9.335,1810.1,1809.9,3.62023]
[1745635248952,9.335,1810.1,1810.0,1.10439]
[1745635249153,9.335,1810.1,1809.9,3.62021]
[1745635250555,9.335,1810.1,1810.0,1.10439]
[1745635250755,10.43933,1810.1,1810.0,1.6398]
[1745635251052,10.43933,1810.1,1809.9,1.91981]
[1745635251247,10.43933,1810.1,1809.9,3.55961]
[1745635251653,9.335,1810.1,1809.9,3.55961]
[1745635252048,10.43934,1810.1,1809.9,3.55961]
[1745635252645,10.43934,1810.1,1809.9,2.4552]
[1745635252854,1.10439,1810.0,1809.9,2.4552]
[1745635253045,10.43938,1810.1,1809.9,1.6398]
[1745635253244,5.308,1810.0,1809.9,1.6398]
[1745635253445,5.308,1810.0,1809.9,2.74425]
[1745635254951,5.31131182,1810.0,1809.9,2.74425]
[1745635255447,5.31131182,1810.0,1809.9,1.6398]
[1745635255850,5.31131182,1810.0,1809.9,2.74425]
[1745635256852,6.41570182,1810.0,1809.9,1.6398]
[1745635257051,6.41570182,1810.0,1809.8,1.93847]
[1745635257253,5.31131182,1810.0,1809.8,3.52507]
[1745635257658,8.04152182,1810.0,1809.8,3.52507]
[1745635258357,6.93711182,1810.0,1809.8,3.52507]
[1745635258551,1.6258,1809.9,1809.8,3.52507]
[1745635258754,2.426,1809.9,1809.8,3.52507]
[1745635258952,1.10451,1809.8,1809.7,6.8408]
[1745635259152,1.6361,1809.8,1809.7,6.8408]
[1745635259351,1.6361,1809.8,1809.7,7.94538]
[1745635259653,1.6361,1809.8,1809.7,8.76368]
[1745635259853,1.6361,1809.8,1809.7,10.49058]
[1745635260155,6.9441,1809.8,1809.7,7.28278]
[1745635262254,1.6361,1809.8,1809.7,7.28278]
[1745635263161,6.9441,1809.8,1809.7,7.28278]
[1745635264756,5.308,1809.8,1809.7,7.28278]
[1745635264954,5.308,1809.8,1809.7,10.49058]
[1745635265162,0.00331182,1810.0,1809.9,1.10445]
[1745635266267,5.31131182,1810.0,1809.9,1.10445]
[1745635268055,5.31131182,1810.0,1809.9,4.31225]
[1745635268856,5.31131182,1810.0,1809.9,9.31225]
[1745635269248,0.00331182,1810.0,1809.9,9.31225]
[1745635270263,0.00331182,1810.0,1809.9,4.31225]
[1745635270457,0.00331182,1810.0,1809.9,7.94325]
[1745635270857,1.71211182,1810.0,1809.9,7.94325]
[1745635272064,0.00331182,1810.0,1809.9,7.94325]
[1745635272267,5.31131182,1810.0,1809.9,8.79915]
[1745635273266,1.10770182,1810.0,1809.9,3.2078]
[1745635273458,0.00331182,1810.0,1809.9,3.2078]
[1745635273659,0.84241182,1810.0,1809.9,3.2078]
[1745635273957,1.69861182,1810.0,1809.9,4.31225]
[1745635274153,7.00661182,1810.0,1809.9,6.81255]
[1745635274367,7.00661182,1810.0,1809.9,3.2078]
[1745635274565,7.84571182,1810.0,1809.9,4.31225]
[1745635274767,7.00661182,1810.0,1809.9,6.81255]
[1745635275862,5.31131182,1810.0,1809.9,6.81255]
[1745635276059,5.31131182,1810.0,1809.9,6.82705]
[1745635276261,0.00331182,1810.0,1809.9,6.82705]
[1745635276763,0.00331182,1810.0,1809.9,11.82705]
[1745635277163,0.00331182,1810.0,1809.9,17.13505]
[1745635277363,0.00331182,1810.0,1809.9,12.13505]
[1745635281263,0.00331182,1810.0,1809.9,6.82705]
[1745635286577,3.631,1810.7,1809.9,6.82705]
[1745635286578,3.2078,1810.8,1810.1,2.76073]
[1745635286873,3.2078,1810.8,1810.4,3.2078]
[1745635286874,0.8294,1810.7,1810.4,3.2078]
[1745635287071,1.6233,1810.6,1810.4,3.2078]
[1745635287272,0.7913,1810.5,1810.4,6.8378]
[1745635287767,8.51869,1810.5,1810.4,3.2078]
[1745635287971,1.10416,1810.4,1810.2,7.94207]
[1745635288274,7.7607,1810.4,1810.2,7.94205]
[1745635288775,1.6233,1810.3,1810.2,7.94205]
[1745635289276,6.9313,1810.3,1810.2,7.94205]
[1745635289577,6.9313,1810.3,1810.2,4.31205]
[1745635293975,6.9313,1810.3,1810.2,1.10425]
[1745635294176,6.9313,1810.3,1810.2,4.31205]
[1745635300078,6.9313,1810.3,1810.2,6.04535]
[1745635303886,6.9313,1810.3,1810.2,4.31205]
[1745635304087,6.9313,1810.3,1810.2,1.10425]
[1745635304288,8.03552,1810.3,1810.1,3.63]
[1745635304480,2.4618,1810.2,1810.1,3.63]
[1745635304680,2.4618,1810.2,1810.1,4.73433]
[1745635305187,7.7698,1810.2,1810.1,4.73433]
[1745635305581,7.7698,1810.2,1810.1,7.32033]
[1745635307792,6.956,1810.2,1810.1,7.32033]
[1745635308192,1.648,1810.2,1810.1,7.32033]
[1745635309188,6.956,1810.2,1810.1,7.32033]
[1745635310185,1.648,1810.2,1810.1,7.32033]
[1745635311191,6.956,1810.2,1810.1,7.32033]
[1745635314990,6.956,1810.2,1810.1,4.73433]
[1745635315195,6.956,1810.2,1810.0,4.32664]
[1745635315493,3.3619,1810.1,1810.0,4.32664]
[1745635316091,8.6699,1810.1,1810.0,4.32664]
[1745635317083,8.6699,1810.1,1810.0,6.07484]
[1745635317494,7.8318,1810.1,1810.0,6.07484]
[1745635321689,5.308,1810.1,1810.0,6.07484]
[1745635324704,5.308,1810.1,1810.0,4.32664]
[1745635324905,6.1728,1810.1,1810.0,4.32664]
[1745635327000,0.8033,1810.3,1810.0,4.32664]
[1745635327001,0.8033,1810.3,1810.0,3.2223]
[1745635327214,9.0798,1811.0,1810.2,5.96847]
[1745635327405,0.8208,1810.7,1810.6,1.10403]
[1745635327705,0.8208,1810.7,1810.5,1.10405]
[1745635327902,2.5758,1810.6,1810.4,6.81811]
[1745635328205,7.8838,1810.6,1810.4,6.81811]
[1745635328504,6.1396,1810.6,1810.5,1.10409]
[1745635329102,6.1396,1810.6,1810.5,2.72689]
[1745635329303,6.1396,1810.6,1810.5,2.74139]
[1745635330400,6.1396,1810.6,1810.5,1.11859]
[1745635332300,5.308,1810.6,1810.5,2.74369]
[1745635333110,3.2078,1811.0,1810.5,2.74369]
[1745635333308,4.9409,1811.0,1810.9,1.10384]
[1745635334208,10.2489,1811.0,1810.9,1.10384]
[1745635334615,7.0411,1811.0,1810.9,1.10384]
[1745635335921,6.1784,1811.0,1810.9,1.10384]
[1745635336214,5.308,1811.0,1810.9,3.50644]
[1745635337224,0.8527,1811.1,1811.0,1.10378]
[1745635337412,0.8527,1811.1,1811.0,4.31158]
[1745635338013,0.8527,1811.1,1811.0,6.03528]
[1745635338212,6.1607,1811.1,1811.0,6.03528]
[1745635339119,5.308,1811.1,1811.0,6.03528]
[1745635339314,6.105,1811.1,1811.0,6.03528]
[1745635339514,6.105,1811.1,1811.0,4.31158]
[1745635340116,6.105,1811.1,1811.0,3.2078]
[1745635341707,6.105,1811.1,1811.0,4.31158]
[1745635343114,6.105,1811.1,1811.0,3.2078]
[1745635343322,6.105,1811.1,1811.0,4.31158]
[1745635344006,6.105,1811.1,1811.0,1.10378]
[1745635344221,6.105,1811.1,1811.0,4.31158]
[1745635344420,6.105,1811.1,1811.0,3.2078]
[1745635344820,11.105,1811.1,1810.6,7.6749]
[1745635345122,1.10381,1811.0,1810.7,1.10394]
[1745635345320,0.8582,1810.9,1810.7,2.78954]
[1745635345719,0.8582,1810.9,1810.7,1.6856]
[1745635345919,0.8257,1810.8,1810.6,6.44002]
[1745635346116,0.8257,1810.8,1810.4,3.2078]
[1745635346117,7.23761,1810.8,1810.5,4.74555]
[1745635346322,6.1337,1810.8,1810.5,7.25735]
[1745635346523,6.1337,1810.8,1810.6,1.10402]
[1745635347123,7.23761,1810.8,1810.5,3.63036]
[1745635347426,7.23761,1810.8,1810.5,7.25735]
[1745635347626,7.23761,1810.8,1810.6,1.10403]
[1745635347923,1.5801,1810.7,1810.6,1.10403]
[1745635348315,6.8881,1810.7,1810.6,1.10403]
[1745635349320,5.308,1810.7,1810.6,3.50313]
[1745635349927,5.308,1810.7,1810.6,6.71093]
[1745635351326,2.4383,1810.9,1810.8,1.1039]
[1745635351725,2.4383,1810.9,1810.7,2.76623]
[1745635351932,2.4383,1810.9,1810.8,1.1039]
[1745635352132,2.4383,1810.9,1810.7,1.6623]
[1745635352133,7.7463,1810.9,1810.7,1.6623]
[1745635352630,7.7463,1810.9,1810.8,1.1039]
[1745635352832,7.7463,1810.9,1810.8,1.9047]
[1745635353222,5.308,1810.9,1810.8,1.9047]
[1745635354133,1.6123,1811.1,1810.9,1.1038]
[1745635354329,1.6123,1811.1,1811.0,1.7299]
[1745635354527,1.6123,1811.1,1811.0,2.83368]
[1745635354936,1.6123,1811.1,1811.0,1.7444]
[1745635355134,6.9203,1811.1,1811.0,2.84818]
[1745635357943,5.308,1811.1,1811.0,6.05598]
[1745635358937,5.308,1811.1,1811.0,4.9522]
[1745635359135,5.308,1811.1,1811.0,4.32608]
[1745635359338,7.0265,1811.1,1811.0,4.32608]
[1745635360139,7.0265,1811.1,1811.0,6.00408]
[1745635360937,8.13022,1811.1,1811.0,0.0145]
[1745635361430,7.0265,1811.1,1811.0,0.0145]
[1745635361631,7.0265,1811.1,1811.0,1.6925]
[1745635362035,7.0265,1811.1,1811.0,2.79628]
[1745635365240,5.308,1811.1,1811.0,2.79628]
[1745635366234,2.4456,1811.2,1811.0,2.79628]
[1745635366736,5.308,1811.3,1811.2,1.10366]
[1745635366943,5.308,1811.3,1811.2,4.73866]
[1745635367142,4.44257,1811.9,1811.5,1.10343]
[1745635367443,1.6035,1811.8,1811.6,4.48181]
[1745635367841,3.2078,1812.7,1811.7,4.9011]
[1745635368041,3.2078,1812.7,1812.3,3.2078]
[1745635368245,3.2078,1812.7,1812.6,1.10281]
[1745635368653,3.2078,1813.1,1812.9,1.10261]
[1745635368838,4.9029,1813.1,1812.7,4.8537]
[1745635369038,4.9029,1813.1,1812.7,8.4877]
[1745635369345,5.308,1813.1,1812.9,1.10259]
[1745635369549,5.308,1813.1,1813.0,1.6459]
[1745635369849,5.308,1813.1,1812.8,1.10266]
[1745635370145,1.6951,1813.0,1812.9,1.6459]
[1745635371137,7.0031,1813.0,1812.9,2.74853]
[1745635371335,7.0031,1813.0,1812.9,1.6459]
[1745635371544,7.0031,1813.0,1812.9,2.74853]
[1745635371852,7.0031,1813.0,1812.7,7.94454]
[1745635372649,7.0031,1813.0,1812.8,1.10269]
[1745635372942,7.0031,1813.0,1812.9,1.10263]
[1745635373149,7.0031,1813.0,1812.8,2.71235]
[1745635373345,7.0031,1813.0,1812.8,1.6097]
[1745635374051,8.10568,1813.0,1812.7,6.8418]
[1745635374238,8.10568,1813.0,1812.7,6.8398]
[1745635374439,5.50772,1814.7,1812.9,1.10263]
[1745635374750,5.50678,1815.0,1813.3,1.10238]
[1745635374751,3.2078,1813.4,1813.3,1.10238]